[Event "FIDE WCCC Girls-10 2024"]
[Site "Montesilvano"]
[Date "2024.11.22"]
[Round "7.19"]
[White "Constantin-Ciuntu, Anne-Sophie"]
[Black "Kuvandikova, Nafisa"]
[Result "0-1"]
[Annotator "NA RC"]
[ECO "A46"]
[WhiteElo "1672"]
[BlackElo "1512"]
[PlyCount "95"]
[EventDate "2024.11.18"]
[EventType "swiss"]
[EventCountry "ITA"]
[SourceTitle "playchess.com"]
[Source "ChessBase"]
[SourceQuality "1"]
[TimeControl "5400+30"]

1. d4 {[%emt 0:00:04]} c5 {[%emt 0:00:41]} 2. e3 {[%emt 0:00:06]} Nf6 {[%emt 0:01:33]} 3. Nf3 {[%emt 0:02:50]} e6 {[%emt 0:00:16]} 4. Bd3 {[%emt 0:00:27]} a6 {[%emt 0:00:14]} 5. a4 {[%emt 0:01:56]} d5 {[%emt 0:00:11]} 6. c3 {[%emt 0:01:00]} c4 {[%emt 0:01:46]} 7. Bc2 {[%emt 0:00:32]} Bd6 {[%emt 0:01:43]} 8. Nbd2 {[%emt 0:01:44]} Nc6 {[%emt 0:00:27]} 9. O-O {[%emt 0:01:26]} O-O {[%emt 0:00:20]} 10. e4 {[%emt 0:02:20]} dxe4 {[%emt 0:03:13]} 11. Nxe4 {[%emt 0:00:30]} Nxe4 {[%emt 0:01:52]} 12. Bxe4 {[%emt 0:00:09]} Na5 {[%emt 0:01:04]} 13. Bc2 {[%emt 0:13:42]} b6 {[%emt 0:00:44]} 14. Re1 {[%emt 0:19:21]} Bb7 {[%emt 0:02:22]} 15. Ne5 {[%emt 0:05:48]} Qf6 {[%emt 0:11:26]} 16. Qh5 {[%emt 0:06:06]} g6 {[%emt 0:00:25]} 17. Qg4 {[%emt 0:12:31]} Rac8 {[%emt 0:04:34]} 18. Bg5 {[%emt 0:04:25]} Qg7 {[%emt 0:02:02]} 19. Nd7 {[%emt 0:00:59]} f5 {[%emt 1:05:07]} 20. Nf6+ {[%emt 0:00:42]} Rxf6 {[%emt 0:00:00]} 21. Bxf6 {[%emt 0:00:41]} Qxf6 {[%emt 0:00:00]} 22. Qe2 {[%emt 0:00:26]} Re8 {[%emt 0:00:00]} 23. Rad1 {[%emt 0:08:46]} Bd5 {[%emt 0:00:00]} 24. h3 {[%emt 0:06:25]} Nc6 {[%emt 0:00:00]} 25. Rb1 {[%emt 0:03:22]} e5 {[%emt 0:00:00]} 26. b3 {[%emt 0:01:31]} b5 {[%emt 0:00:00]} 27. b4 {[%emt 0:01:01]} Re7 {[%emt 0:00:00]} 28. dxe5 {[%emt 0:00:55]} Bxe5 {[%emt 0:00:00]} 29. Qd1 {[%emt 0:02:23]} Be6 {[%emt 0:00:00]} 30. Qf3 {[%emt 0:01:19]} Bf7 {[%emt 0:00:00]} 31. Re3 {[%emt 0:01:43]} Rc7 {[%emt 0:00:00]} 32. g3 {[%emt 0:00:29]} f4 {[%emt 0:00:00]} 33. gxf4 {[%emt 0:00:25]} Bxf4 {[%emt 0:00:00]} 34. Re4 {[%emt 0:00:21]} Bh2+ {[%emt 0:00:00]} 35. Kg2 {[%emt 0:00:26]} Qxf3+ {[%emt 0:00:00]} 36. Kxf3 {[%emt 0:00:14]} Bd5 {[%emt 0:00:00]} 37. Rh1 {[%emt 0:00:22]} Bxe4+ {[%emt 0:00:00]} 38. Kxe4 {[%emt 0:00:21]} Be5 {[%emt 0:00:00]} 39. Kd5 {[%emt 0:00:50]} Bxc3 {[%emt 0:00:00]} 40. Kd6 {[%emt 0:00:31]} Be5+ {[%emt 0:00:00]} 41. Kc5 {[%emt 0:00:27]} Nd4+ {[%emt 0:00:00]} 42. Kd5 {[%emt 0:00:07]} Nxc2 {[%emt 0:00:00]} 43. Kxe5 {[%emt 0:00:05]} Nxb4 {[%emt 0:00:00]} 44. axb5 {[%emt 0:00:14]} axb5 {[%emt 0:00:00]} 45. f3 {[%emt 0:00:15]} c3 {[%emt 0:00:00]} 46. Kd4 {[%emt 0:00:38]} c2 {[%emt 0:00:00]} 47. Rc1 {[%emt 0:00:34]} Na2 {[%emt 0:00:00]} 48. Ra1 {[%emt 0:03:01]} 0-1

[Event "FIDE WCCC Girls-10 2024"]
[Site "Montesilvano"]
[Date "2024.11.22"]
[Round "7.20"]
[White "Rosset, Anna"]
[Black "Zhang, Weiai"]
[Result "0-1"]
[Annotator "NA RC"]
[ECO "B52"]
[WhiteElo "1814"]
[BlackElo "1488"]
[PlyCount "106"]
[EventDate "2024.11.18"]
[EventType "swiss"]
[EventCountry "ITA"]
[SourceTitle "playchess.com"]
[Source "ChessBase"]
[SourceQuality "1"]
[TimeControl "5400+30"]

1. e4 {[%emt 0:00:01]} c5 {[%emt 0:00:10]} 2. Nf3 {[%emt 0:00:07]} d6 {[%emt 0:00:06]} 3. Bb5+ {[%emt 0:00:15]} Bd7 {[%emt 0:00:12]} 4. Bxd7+ {[%emt 0:00:06]} Qxd7 {[%emt 0:00:08]} 5. O-O {[%emt 0:00:12]} Nc6 {[%emt 0:00:15]} 6. c3 {[%emt 0:00:13]} Nf6 {[%emt 0:05:26]} 7. Qe2 {[%emt 0:00:10]} e6 {[%emt 0:00:55]} 8. d4 {[%emt 0:00:16]} cxd4 {[%emt 0:00:22]} 9. cxd4 {[%emt 0:00:06]} Be7 {[%emt 0:01:31]} 10. Nc3 {[%emt 0:00:43]} O-O {[%emt 0:02:06]} 11. Bf4 {[%emt 0:00:32]} Rac8 {[%emt 0:05:07]} 12. d5 {[%emt 0:05:56]} exd5 {[%emt 0:05:24]} 13. exd5 {[%emt 0:00:09]} Nb4 {[%emt 0:00:44]} 14. Rfd1 {[%emt 0:04:26]} Rfe8 {[%emt 0:13:37]} 15. a3 {[%emt 0:06:31]} Na6 {[%emt 0:00:52]} 16. Rac1 {[%emt 0:15:36]} Bf8 {[%emt 0:09:43]} 17. Qd3 {[%emt 0:32:35]} Nc5 {[%emt 0:05:11]} 18. Qb5 {[%emt 0:02:39]} Qf5 {[%emt 0:09:44]} 19. Bg3 {[%emt 0:09:22]} a6 {[%emt 0:06:51]} 20. Qb4 {[%emt 0:05:47]} Nh5 {[%emt 0:16:22]} 21. Nh4 {[%emt 0:03:42]} Qd7 {[%emt 0:02:55]} 22. Nf3 {[%emt 0:04:50]} Nxg3 {[%emt 0:00:21]} 23. hxg3 {[%emt 0:01:02]} g6 {[%emt 0:02:44]} 24. Qh4 {[%emt 0:05:05]} Bg7 {[%emt 0:02:26]} 25. Kh2 {[%emt 0:01:18]} Nb3 {[%emt 0:02:07]} 26. Rb1 {[%emt 0:01:51]} Qf5 {[%emt 0:04:38]} 27. Qb4 {[%emt 0:00:00]} Nc5 {[%emt 0:00:38]} 28. g4 {[%emt 0:00:17]} Qd7 {[%emt 0:00:40]} 29. g5 {[%emt 0:00:30]} Re7 {[%emt 0:01:15]} 30. Rh1 {[%emt 0:00:25]} f5 {[%emt 0:01:05]} 31. Kg1 {[%emt 0:00:39]} Nd3 {[%emt 0:01:04]} 32. Qh4 {[%emt 0:00:28]} Bxc3 {[%emt 0:00:19]} 33. bxc3 {[%emt 0:00:09]} Re4 {[%emt 0:00:32]} 34. Qh6 {[%emt 0:00:54]} Rxc3 {[%emt 0:00:20]} 35. Nh4 {[%emt 0:00:24]} Ne5 {[%emt 0:00:59]} 36. f3 {[%emt 0:00:41]} Nf7 {[%emt 0:00:26]} 37. fxe4 {[%emt 0:00:31]} Nxh6 {[%emt 0:00:06]} 38. gxh6 {[%emt 0:00:04]} fxe4 {[%emt 0:00:18]} 39. Rf1 {[%emt 0:00:28]} e3 {[%emt 0:00:54]} 40. Nxg6 {[%emt 0:00:23]} Rc8 {[%emt 0:00:47]} 41. Nf4 {[%emt 0:00:21]} Qg4 {[%emt 0:00:41]} 42. Rh3 {[%emt 0:01:10]} e2 {[%emt 0:00:41]} 43. Nxe2 {[%emt 0:00:10]} Qxe2 {[%emt 0:00:05]} 44. Rg3+ {[%emt 0:00:13]} Kh8 {[%emt 0:00:05]} 45. Rgf3 {[%emt 0:00:25]} Rg8 {[%emt 0:00:37]} 46. R1f2 {[%emt 0:00:36]} Qd1+ {[%emt 0:00:15]} 47. Kh2 {[%emt 0:00:16]} Qxd5 {[%emt 0:00:07]} 48. Kg1 {[%emt 0:00:42]} Qg5 {[%emt 0:00:22]} 49. Rf6 {[%emt 0:00:17]} Qc1+ {[%emt 0:00:27]} 50. Kh2 {[%emt 0:00:08]} Qxa3 {[%emt 0:00:11]} 51. Rf7 {[%emt 0:00:35]} b5 {[%emt 0:00:25]} 52. R2f3 {[%emt 0:00:55]} Qb4 {[%emt 0:00:20]} 53. Rd7 {[%emt 0:00:33]} Qg4 {[%emt 0:00:38]} 0-1

[Event "FIDE WCCC Girls-10 2024"]
[Site "Montesilvano"]
[Date "2024.11.22"]
[Round "7.21"]
[White "Samhita Pungavanam"]
[Black "Macchia-Shahar, Yali"]
[Result "1-0"]
[Annotator "NA RC"]
[ECO "B22"]
[WhiteElo "1752"]
[BlackElo "1564"]
[PlyCount "77"]
[EventDate "2024.11.18"]
[EventType "swiss"]
[EventCountry "ITA"]
[SourceTitle "playchess.com"]
[Source "ChessBase"]
[SourceQuality "1"]
[TimeControl "5400+30"]

1. e4 {[%emt 0:00:26]} c5 {[%emt 0:00:12]} 2. Nf3 {[%emt 0:00:40]} e6 {[%emt 0:00:20]} 3. c3 {[%emt 0:00:47]} d5 {[%emt 0:00:25]} 4. exd5 {[%emt 0:01:20]} Qxd5 {[%emt 0:00:45]} 5. Na3 {[%emt 0:02:13]} Nf6 {[%emt 0:01:26]} 6. d4 {[%emt 0:01:12]} Be7 {[%emt 0:03:29]} 7. Nb5 {[%emt 0:06:15]} Qd8 {[%emt 0:01:17]} 8. Bf4 {[%emt 0:06:36]} Nd5 {[%emt 0:01:28]} 9. Bg3 {[%emt 0:00:48]} cxd4 {[%emt 0:01:33]} 10. Nbxd4 {[%emt 0:03:16]} O-O {[%emt 0:02:57]} 11. Bd3 {[%emt 0:02:31]} Nd7 {[%emt 0:02:18]} 12. O-O {[%emt 0:04:56]} N7f6 {[%emt 0:02:08]} 13. Qc2 {[%emt 0:01:47]} h6 {[%emt 0:04:17]} 14. Rad1 {[%emt 0:00:36]} Nh5 {[%emt 0:04:29]} 15. a3 {[%emt 0:11:01]} Nxg3 {[%emt 0:03:00]} 16. hxg3 {[%emt 0:01:20]} Qc7 {[%emt 0:03:39]} 17. Nb5 {[%emt 0:06:12]} Qb8 {[%emt 0:08:38]} 18. Rfe1 {[%emt 0:04:34]} Bf6 {[%emt 0:08:42]} 19. c4 {[%emt 0:02:31]} Nb6 {[%emt 0:03:33]} 20. c5 {[%emt 0:00:52]} Nd5 {[%emt 0:03:26]} 21. Be4 {[%emt 0:00:31]} Ne7 {[%emt 0:06:53]} 22. Nd6 {[%emt 0:00:41]} Qc7 {[%emt 0:03:32]} 23. Rd2 {[%emt 0:04:13]} Rb8 {[%emt 0:04:42]} 24. Red1 {[%emt 0:01:45]} Nc6 {[%emt 0:05:48]} 25. b4 {[%emt 0:06:40]} Rd8 {[%emt 0:03:13]} 26. Bh7+ {[%emt 0:04:14]} Kf8 {[%emt 0:02:40]} 27. Ne4 {[%emt 0:04:29]} Rxd2 {[%emt 0:01:50]} 28. Qxd2 {[%emt 0:05:28]} Be7 {[%emt 0:01:35]} 29. Nd6 {[%emt 0:00:48]} Bd7 {[%emt 0:03:20]} 30. Nb5 {[%emt 0:02:06]} Qd8 {[%emt 0:03:22]} 31. Qxd7 {[%emt 0:04:11]} Qxd7 {[%emt 0:00:44]} 32. Rxd7 {[%emt 0:00:04]} g6 {[%emt 0:00:25]} 33. Nd6 {[%emt 0:02:38]} Kg7 {[%emt 0:02:55]} 34. b5 {[%emt 0:00:19]} Bxd6 {[%emt 0:00:21]} 35. bxc6 {[%emt 0:00:57]} Bxc5 {[%emt 0:01:02]} 36. Ne5 {[%emt 0:00:51]} Kxh7 {[%emt 0:01:56]} 37. cxb7 {[%emt 0:00:29]} Bd6 {[%emt 0:05:27]} 38. Nc6 {[%emt 0:00:33]} Re8 {[%emt 0:00:42]} 39. Rxd6 {[%emt 0:00:10]} 1-0

[Event "FIDE WCCC Girls-10 2024"]
[Site "Montesilvano"]
[Date "2024.11.22"]
[Round "7.22"]
[White "Nguyen, Lam Vy Le"]
[Black "Kravchuk, Daria"]
[Result "1/2-1/2"]
[Annotator "NA RC"]
[ECO "B26"]
[WhiteElo "1728"]
[BlackElo "1569"]
[PlyCount "75"]
[EventDate "2024.11.18"]
[EventType "swiss"]
[EventCountry "ITA"]
[SourceTitle "playchess.com"]
[Source "ChessBase"]
[SourceQuality "1"]
[TimeControl "5400+30"]

1. e4 {[%emt 0:00:05]} c5 {[%emt 0:00:15]} 2. Nc3 {[%emt 0:00:07]} Nc6 {[%emt 0:00:06]} 3. g3 {[%emt 0:00:07]} g6 {[%emt 0:00:25]} 4. Bg2 {[%emt 0:00:12]} Bg7 {[%emt 0:00:05]} 5. d3 {[%emt 0:00:44]} Rb8 {[%emt 0:00:51]} 6. Be3 {[%emt 0:00:41]} d6 {[%emt 0:00:18]} 7. Nge2 {[%emt 0:00:24]} b5 {[%emt 0:00:51]} 8. Qd2 {[%emt 0:01:33]} b4 {[%emt 0:00:45]} 9. Nd1 {[%emt 0:00:49]} e6 {[%emt 0:06:47]} 10. O-O {[%emt 0:06:09]} Nge7 {[%emt 0:03:49]} 11. d4 {[%emt 0:04:57]} cxd4 {[%emt 0:06:40]} 12. Nxd4 {[%emt 0:00:24]} O-O {[%emt 0:01:03]} 13. Nxc6 {[%emt 0:10:41]} Nxc6 {[%emt 0:00:13]} 14. Bf4 {[%emt 0:01:57]} Ba6 {[%emt 0:03:24]} 15. Re1 {[%emt 0:03:59]} e5 {[%emt 0:07:13]} 16. Be3 {[%emt 0:03:50]} Qd7 {[%emt 0:06:51]} 17. f3 {[%emt 0:08:46]} Bc4 {[%emt 0:11:17]} 18. Nf2 {[%emt 0:01:13]} Rfd8 {[%emt 0:06:09]} 19. Rad1 {[%emt 0:09:42]} Qc7 {[%emt 0:06:15]} 20. b3 {[%emt 0:06:07]} Be6 {[%emt 0:01:08]} 21. Bh3 {[%emt 0:04:25]} d5 {[%emt 0:05:57]} 22. Bxe6 {[%emt 0:04:17]} fxe6 {[%emt 0:00:14]} 23. Bg5 {[%emt 0:02:45]} Nd4 {[%emt 0:06:08]} 24. Bxd8 {[%emt 0:12:52]} Nxf3+ {[%emt 0:00:28]} 25. Kg2 {[%emt 0:00:23]} Nxe1+ {[%emt 0:00:26]} 26. Rxe1 {[%emt 0:00:09]} Rxd8 {[%emt 0:00:27]} 27. Qe2 {[%emt 0:02:14]} d4 {[%emt 0:06:31]} 28. Qd2 {[%emt 0:01:53]} a5 {[%emt 0:00:43]} 29. h4 {[%emt 0:01:09]} Rc8 {[%emt 0:00:51]} 30. Re2 {[%emt 0:01:00]} Rf8 {[%emt 0:02:38]} 31. Nd3 {[%emt 0:02:30]} Qc6 {[%emt 0:05:25]} 32. Qg5 {[%emt 0:01:06]} Qc3 {[%emt 0:03:35]} 33. Qd2 {[%emt 0:01:48]} Qa1 {[%emt 0:01:24]} 34. Rf2 {[%emt 0:01:50]} Qxa2 {[%emt 0:01:05]} 35. Rxf8+ {[%emt 0:00:15]} Kxf8 {[%emt 0:00:50]} 36. Qd1 {[%emt 0:01:01]} Ke7 {[%emt 0:01:13]} 37. Nc5 {[%emt 0:01:25]} Bh6 {[%emt 0:02:28]} 38. Qd3 {[%emt 0:01:44]} 1/2-1/2

[Event "FIDE WCCC Girls-10 2024"]
[Site "Montesilvano"]
[Date "2024.11.22"]
[Round "7.23"]
[White "Wang, Mi Ya Mia"]
[Black "Tu, Tiffany"]
[Result "1/2-1/2"]
[Annotator "NA RC"]
[ECO "C54"]
[WhiteElo "1552"]
[BlackElo "1687"]
[PlyCount "94"]
[EventDate "2024.11.18"]
[EventType "swiss"]
[EventCountry "ITA"]
[SourceTitle "playchess.com"]
[Source "ChessBase"]
[SourceQuality "1"]
[TimeControl "5400+30"]

1. e4 {[%emt 0:00:01]} e5 {[%emt 0:00:06]} 2. Nf3 {[%emt 0:00:18]} Nc6 {[%emt 0:00:07]} 3. Bc4 {[%emt 0:00:24]} Nf6 {[%emt 0:00:11]} 4. d3 {[%emt 0:00:24]} Bc5 {[%emt 0:00:11]} 5. c3 {[%emt 0:00:34]} a6 {[%emt 0:00:24]} 6. a4 {[%emt 0:00:28]} d6 {[%emt 0:01:00]} 7. Na3 {[%emt 0:00:26]} Ba7 {[%emt 0:01:20]} 8. Nc2 {[%emt 0:00:48]} O-O {[%emt 0:00:52]} 9. Be3 {[%emt 0:00:52]} Be6 {[%emt 0:04:39]} 10. Bxe6 {[%emt 0:01:00]} fxe6 {[%emt 0:00:20]} 11. Bxa7 {[%emt 1:30:45]} Rxa7 {[%emt 0:02:49]} 12. Ne3 {[%emt 0:00:00]} d5 {[%emt 0:04:57]} 13. exd5 {[%emt 0:00:00]} exd5 {[%emt 0:00:24]} 14. O-O {[%emt 0:00:00]} Qd7 {[%emt 0:03:51]} 15. Nd2 {[%emt 0:00:00]} Raa8 {[%emt 0:02:31]} 16. Nb3 {[%emt 0:00:00]} Qd6 {[%emt 0:08:09]} 17. g3 {[%emt 0:00:00]} Rae8 {[%emt 0:23:05]} 18. Ng2 {[%emt 0:00:00]} Qe6 {[%emt 0:03:34]} 19. Ne3 {[%emt 0:00:00]} Qh3 {[%emt 0:02:28]} 20. Qf3 {[%emt 0:00:00]} d4 {[%emt 0:11:39]} 21. cxd4 {[%emt 0:00:00]} exd4 {[%emt 0:01:40]} 22. Nc2 {[%emt 0:00:00]} Ng4 {[%emt 0:02:30]} 23. Qg2 {[%emt 0:00:00]} Qxg2+ {[%emt 0:00:29]} 24. Kxg2 {[%emt 0:00:00]} Re2 {[%emt 0:00:26]} 25. Nbxd4 {[%emt 0:00:00]} Nxd4 {[%emt 0:00:47]} 26. Nxd4 {[%emt 0:00:00]} Rxb2 {[%emt 0:03:20]} 27. Rab1 {[%emt 0:00:00]} Rbxf2+ {[%emt 0:03:20]} 28. Rxf2 {[%emt 0:00:00]} Rxf2+ {[%emt 0:00:15]} 29. Kg1 {[%emt 0:00:00]} Ra2 {[%emt 0:03:34]} 30. Rxb7 {[%emt 0:00:00]} Rxa4 {[%emt 0:00:37]} 31. Ne6 {[%emt 0:00:00]} Ra1+ {[%emt 0:00:49]} 32. Kg2 {[%emt 0:00:00]} Ra2+ {[%emt 0:00:14]} 33. Kg1 {[%emt 0:00:00]} Nxh2 {[%emt 0:01:49]} 34. Rxc7 {[%emt 0:00:00]} Nf3+ {[%emt 0:00:17]} 35. Kf1 {[%emt 0:00:00]} g6 {[%emt 0:02:34]} 36. Rg7+ {[%emt 0:00:00]} Kh8 {[%emt 0:00:07]} 37. Rf7 {[%emt 0:00:00]} Nh2+ {[%emt 0:01:33]} 38. Kg1 {[%emt 0:00:00]} h5 {[%emt 0:01:23]} 39. Rf8+ {[%emt 0:00:00]} Kh7 {[%emt 0:00:10]} 40. Rf7+ {[%emt 0:00:00]} Kh8 {[%emt 0:07:39]} 41. Rf8+ {[%emt 0:00:00]} Kh7 {[%emt 0:00:05]} 42. Rf7+ {[%emt 0:00:00]} Kg8 {[%emt 0:01:29]} 43. Rf8+ {[%emt 0:00:00]} Kh7 {[%emt 0:00:18]} 44. Rf7+ {[%emt 0:00:00]} Kh6 {[%emt 0:00:55]} 45. Rf8 {[%emt 0:00:00]} Kh7 {[%emt 0:03:24]} 46. Rf7+ {[%emt 0:00:00]} Kh6 {[%emt 0:00:27]} 47. Rf8 {[%emt 0:00:00]} Kh7 {[%emt 0:00:39]} 1/2-1/2

[Event "FIDE WCCC Girls-10 2024"]
[Site "Montesilvano"]
[Date "2024.11.22"]
[Round "7.24"]
[White "Mandukhai, Munkhbat"]
[Black "Minasyan, Arina"]
[Result "1-0"]
[Annotator "NA RC"]
[ECO "B21"]
[WhiteElo "1645"]
[BlackElo "1545"]
[PlyCount "59"]
[EventDate "2024.11.18"]
[EventType "swiss"]
[EventCountry "ITA"]
[SourceTitle "playchess.com"]
[Source "ChessBase"]
[SourceQuality "1"]
[TimeControl "5400+30"]

1. e4 {[%emt 0:00:01]} c5 {[%emt 0:00:06]} 2. d4 {[%emt 0:00:07]} cxd4 {[%emt 0:02:06]} 3. c3 {[%emt 0:00:07]} dxc3 {[%emt 0:04:32]} 4. Nxc3 {[%emt 0:00:10]} d6 {[%emt 0:01:02]} 5. Bc4 {[%emt 0:00:18]} Nf6 {[%emt 0:03:54]} 6. e5 {[%emt 0:01:18]} dxe5 {[%emt 0:13:42]} 7. Bxf7+ {[%emt 0:00:12]} Kxf7 {[%emt 0:01:12]} 8. Qxd8 {[%emt 0:00:26]} Nc6 {[%emt 0:10:57]} 9. Qd1 {[%emt 0:10:48]} Bf5 {[%emt 0:06:54]} 10. Nf3 {[%emt 0:01:54]} Rd8 {[%emt 0:02:41]} 11. Qb3+ {[%emt 0:01:10]} e6 {[%emt 0:02:19]} 12. Qxb7+ {[%emt 0:00:21]} Ne7 {[%emt 0:02:49]} 13. Nxe5+ {[%emt 0:01:10]} Kg8 {[%emt 0:09:46]} 14. O-O {[%emt 0:00:32]} Bg6 {[%emt 0:05:06]} 15. Bg5 {[%emt 0:04:01]} Ned5 {[%emt 0:06:24]} 16. Nxd5 {[%emt 0:00:56]} Rxd5 {[%emt 0:02:14]} 17. Bxf6 {[%emt 0:00:19]} gxf6 {[%emt 0:00:10]} 18. Nd7 {[%emt 0:00:09]} Rf5 {[%emt 0:01:12]} 19. Rac1 {[%emt 0:00:55]} h6 {[%emt 0:06:36]} 20. Nxf8 {[%emt 0:00:45]} Bf7 {[%emt 0:06:21]} 21. Rc8 {[%emt 0:00:07]} Kg7 {[%emt 0:00:37]} 22. Nxe6+ {[%emt 0:00:06]} Kg6 {[%emt 0:00:20]} 23. Rxh8 {[%emt 0:00:24]} Rh5 {[%emt 0:04:01]} 24. Nf4+ {[%emt 0:00:43]} Kg5 {[%emt 0:00:44]} 25. Nxh5 {[%emt 0:00:04]} Bxh5 {[%emt 0:00:23]} 26. f4+ {[%emt 0:00:01]} Kh4 {[%emt 0:00:43]} 27. Rxh6 {[%emt 0:00:08]} f5 {[%emt 0:00:13]} 28. Rxh5+ {[%emt 0:00:05]} Kxh5 {[%emt 0:00:07]} 29. Qg7 {[%emt 0:00:05]} a6 {[%emt 0:00:16]} 30. Qg5# {[%emt 0:00:04]} 1-0

[Event "FIDE WCCC Girls-10 2024"]
[Site "Montesilvano"]
[Date "2024.11.22"]
[Round "7.25"]
[White "Aragonda, Sahasra"]
[Black "Sun, Yucan(Sd)"]
[Result "0-1"]
[Annotator "NA"]
[ECO "D04"]
[WhiteElo "1526"]
[BlackElo "1725"]
[PlyCount "58"]
[EventDate "2024.11.18"]
[EventType "swiss"]
[EventCountry "ITA"]
[SourceTitle "playchess.com"]
[Source "ChessBase"]
[SourceQuality "1"]
[TimeControl "5400+30"]

1. d4 {[%emt 0:00:03]} Nf6 {[%emt 0:00:08]} 2. Nf3 {[%emt 0:00:16]} d5 {[%emt 0:00:18]} 3. e3 {[%emt 0:00:13]} g6 {[%emt 0:00:31]} 4. b3 {[%emt 0:00:47]} Bg7 {[%emt 0:00:20]} 5. Bb2 {[%emt 0:00:14]} O-O {[%emt 0:11:29]} 6. Nbd2 {[%emt 0:03:02]} b6 {[%emt 0:12:25]} 7. Be2 {[%emt 0:03:31]} c5 {[%emt 0:05:07]} 8. dxc5 {[%emt 0:00:21]} bxc5 {[%emt 0:00:18]} 9. O-O {[%emt 0:01:32]} Bf5 {[%emt 0:11:24]} 10. Ne5 {[%emt 0:06:13]} Nfd7 {[%emt 0:08:31]} 11. Nxd7 {[%emt 0:02:38]} Nxd7 {[%emt 0:07:37]} 12. Bxg7 {[%emt 0:00:17]} Kxg7 {[%emt 0:00:16]} 13. Nf3 {[%emt 0:03:38]} Nb6 {[%emt 0:06:12]} 14. Qd2 {[%emt 0:04:49]} Qd6 {[%emt 0:03:43]} 15. Rad1 {[%emt 0:05:32]} e5 {[%emt 0:04:37]} 16. Qc3 {[%emt 0:04:21]} d4 {[%emt 0:04:28]} 17. exd4 {[%emt 0:00:50]} cxd4 {[%emt 0:00:50]} 18. Qa5 {[%emt 0:03:22]} f6 {[%emt 0:04:11]} 19. Qd2 {[%emt 0:03:23]} Qc5 {[%emt 0:02:26]} 20. Rc1 {[%emt 0:04:51]} Rfd8 {[%emt 0:01:37]} 21. b4 {[%emt 0:04:22]} Qc6 {[%emt 0:02:38]} 22. Rfd1 {[%emt 0:05:11]} Nd5 {[%emt 0:03:50]} 23. a3 {[%emt 0:06:12]} Nc3 {[%emt 0:00:46]} 24. Re1 {[%emt 0:01:16]} Rac8 {[%emt 0:01:27]} 25. Nh4 {[%emt 0:00:49]} Be6 {[%emt 0:01:00]} 26. Nf3 {[%emt 0:00:31]} Qa4 {[%emt 0:03:51]} 27. h3 {[%emt 0:01:54]} Qxa3 {[%emt 0:00:49]} 28. Ra1 {[%emt 0:00:26]} Ba2 {[%emt 0:01:20]} 29. Bd3 {[%emt 0:01:24]} Qxb4 {[%emt 0:00:40]} 0-1

[Event "FIDE WCCC Girls-10 2024"]
[Site "Montesilvano"]
[Date "2024.11.22"]
[Round "7.26"]
[White "Poliak, Margarita"]
[Black "Mohamed Ahmed, Ghidaa"]
[Result "1/2-1/2"]
[Annotator "NA RC"]
[ECO "C41"]
[WhiteElo "1514"]
[BlackElo "1638"]
[PlyCount "44"]
[EventDate "2024.11.18"]
[EventType "swiss"]
[EventCountry "ITA"]
[SourceTitle "playchess.com"]
[Source "ChessBase"]
[SourceQuality "1"]
[TimeControl "5400+30"]

1. e4 {[%emt 0:00:04]} e5 {[%emt 0:00:08]} 2. Nf3 {[%emt 0:00:06]} d6 {[%emt 0:00:06]} 3. d4 {[%emt 0:00:06]} exd4 {[%emt 0:00:06]} 4. Nxd4 {[%emt 0:00:05]} Nf6 {[%emt 0:00:09]} 5. Nc3 {[%emt 0:00:08]} Be7 {[%emt 0:00:14]} 6. g3 {[%emt 0:00:43]} a6 {[%emt 0:00:21]} 7. Bg2 {[%emt 0:00:21]} h6 {[%emt 0:00:31]} 8. O-O {[%emt 0:00:31]} O-O {[%emt 0:00:09]} 9. a4 {[%emt 0:04:00]} Re8 {[%emt 0:01:26]} 10. b3 {[%emt 0:05:48]} Nbd7 {[%emt 0:01:14]} 11. Bb2 {[%emt 0:01:32]} Nf8 {[%emt 0:02:42]} 12. h3 {[%emt 0:09:08]} Ng6 {[%emt 0:06:28]} 13. Nf5 {[%emt 0:04:39]} Bf8 {[%emt 0:09:58]} 14. Nd5 {[%emt 0:08:03]} Nxd5 {[%emt 0:03:53]} 15. Qxd5 {[%emt 0:00:41]} c6 {[%emt 0:01:36]} 16. Qd4 {[%emt 0:01:37]} Bxf5 {[%emt 0:01:21]} 17. exf5 {[%emt 0:00:12]} Ne5 {[%emt 0:00:36]} 18. Rfe1 {[%emt 0:05:55]} Nd7 {[%emt 0:25:30]} 19. Red1 {[%emt 0:26:33]} Qf6 {[%emt 0:23:30]} 20. Qxf6 {[%emt 0:00:17]} Nxf6 {[%emt 0:00:20]} 21. c4 {[%emt 0:02:36]} Rad8 {[%emt 0:04:52]} 22. Rd2 {[%emt 0:02:02]} Nd7 {[%emt 0:02:04]} 1/2-1/2